bitfinex-derivatives/quotes_BTCF0:USTF0_20230402
["timestamp","ask_amount","ask_price","bid_price","bid_amount"]
[1680464876373,0.05,27970.0,27966.0,0.192]
[1680464876775,0.05,27970.0,27969.0,0.1427]
[1680464876974,0.1931,27971.0,27966.0,0.1931]
[1680464877174,0.1431,27971.0,27966.0,0.1931]
[1680464877374,0.05,27970.0,27966.0,0.1931]
[1680464877875,0.1431,27971.0,27967.0,0.02793834]
[1680464878181,0.05,27970.0,27967.0,0.02793834]
[1680464878383,0.1925,27975.0,27969.0,0.1426]
[1680464878578,0.05,27970.0,27966.0,0.05]
[1680464878883,0.05,27975.0,27969.0,0.1431]
[1680464879086,0.05,27975.0,27971.0,0.1431]
[1680464879381,0.4936,27974.0,27972.0,0.05]
[1680464879580,0.05,27973.0,27972.0,0.1931]
[1680464879980,0.05,27973.0,27972.0,0.17660942]
[1680464880181,0.05,27973.0,27972.0,0.08350942]
[1680464880585,0.05,27978.0,27974.0,0.1431]
[1680464880779,0.05,27978.0,27977.0,0.1431]
[1680464880981,0.4938,27978.0,27972.0,0.03350942]
[1680464881281,0.4938,27978.0,27971.0,0.1431]
[1680464881484,0.05,27975.0,27971.0,0.1431]
[1680464881684,0.1431,27974.0,27970.0,0.05]
[1680464882086,0.05,27973.0,27970.0,0.05]
[1680464882277,0.05,27975.0,27972.0,0.1431]
[1680464882478,0.05,27975.0,27973.0,0.1426]
[1680464882688,0.05,27975.0,27974.0,0.05]
[1680464882879,0.05,27977.0,27974.0,0.05]
[1680464883282,0.05,27976.0,27974.0,0.05]
[1680464883682,0.05,27976.0,27974.0,0.1931]
[1680464883876,0.05,27976.0,27973.0,0.1927]
[1680464884078,0.05,27976.0,27975.0,0.142]
[1680464884475,0.05,27977.0,27975.0,0.142]
[1680464884679,0.05,27977.0,27976.0,0.1431]
[1680464884982,0.05,27977.0,27972.0,0.3007]
[1680464884983,0.1931,27977.0,27972.0,0.1431]
[1680464885180,0.3007,27975.0,27972.0,0.1431]
[1680464885490,0.05,27974.0,27969.0,0.1431]
[1680464885686,0.05,27974.0,27970.0,0.05]
[1680464886277,0.05,27977.0,27973.0,0.142]
[1680464886482,0.05,27977.0,27976.0,0.1431]
[1680464886882,0.05,27977.0,27971.0,0.142]
[1680464887084,0.05,27977.0,27976.0,0.02829002]
[1680464887289,0.05,27977.0,27972.0,0.05]
[1680464887487,0.05,27977.0,27976.0,0.142]
[1680464887881,0.05,27979.0,27975.0,0.1427]
[1680464888188,0.05,27979.0,27977.0,0.1431]
[1680464888888,0.1425,27978.0,27973.0,0.05]
[1680464889288,0.05,27977.0,27976.0,0.1427]
[1680464889690,0.05,27977.0,27973.0,0.05]
[1680464889890,0.05,27977.0,27974.0,0.1426]
[1680464890293,0.05,27977.0,27975.0,0.05]
[1680464890490,0.3507,27981.0,27976.0,0.1427]
[1680464890690,0.3007,27981.0,27980.0,0.1426]
[1680464890892,0.4435,27981.0,27977.0,0.05]
[1680464891194,0.05,27980.0,27977.0,0.05]
[1680464891585,0.05,27980.0,27979.0,0.1427]
[1680464891791,0.3507,27981.0,27979.0,0.1427]
[1680464891988,0.05,27980.0,27977.0,0.1927]
[1680464892184,0.05,27980.0,27979.0,0.0894]
[1680464892787,0.05,27980.0,27979.0,0.12167634]
[1680464893194,0.05,27980.0,27979.0,0.03227634]
[1680464893492,0.1394,27980.0,27979.0,0.03227634]
[1680464893687,0.05,27980.0,27979.0,0.0891]
[1680464893893,0.0889,27980.0,27977.0,0.05]
[1680464894084,0.05,27979.0,27977.0,0.05]
[1680464894488,0.05,27979.0,27978.0,0.0891]
[1680464894688,0.05,27981.0,27978.0,0.0891]
[1680464894884,0.0892,27983.0,27979.0,0.05]
[1680464895085,0.05,27986.0,27982.0,0.0891]
[1680464895392,0.05,27983.0,27979.0,0.05]
[1680464895589,0.05,27983.0,27982.0,0.0894]
[1680464895790,0.1394,27983.0,27979.0,0.05]
[1680464895994,0.05,27983.0,27982.0,0.0894]
[1680464896189,0.1394,27983.0,27979.0,0.05]
[1680464896688,0.05,27983.0,27982.0,0.0894]
[1680464896987,0.05,27986.0,27983.0,0.05]
[1680464897185,0.05,27986.0,27985.0,0.0888]
[1680464899087,0.3007,27987.0,27985.0,0.0888]
[1680464899088,0.05,27988.0,27985.0,0.0894]
[1680464899289,0.05,27988.0,27983.0,0.05]
[1680464899290,0.05,27989.0,27987.0,0.0894]
[1680464899495,0.16985407,27989.0,27988.0,0.05]
[1680464899789,0.21985407,27989.0,27987.0,0.0894]
[1680464899995,0.05,27988.0,27986.0,0.05]
[1680464900186,0.05,27988.0,27985.0,0.0888]
[1680464900387,0.05,27988.0,27983.0,0.05]
[1680464900388,0.05,27988.0,27986.0,0.0891]
[1680464900896,0.05,27988.0,27987.0,0.0888]
[1680464901486,0.05,27988.0,27986.0,0.0891]
[1680464901990,0.21985407,27989.0,27987.0,0.0894]
[1680464902193,0.05,27988.0,27987.0,0.0894]
[1680464902695,0.05,27989.0,27987.0,0.0894]
[1680464903398,0.05,27989.0,27988.0,0.0894]
[1680464903590,0.52055407,27990.0,27988.0,0.0894]
[1680464903791,0.16985407,27991.0,27987.0,0.05]
[1680464903994,0.16985407,27992.0,27991.0,0.1785]
[1680464904198,0.16985407,27992.0,27991.0,0.1782]
[1680464904393,0.05,27992.0,27991.0,0.1782]
[1680464905298,0.05,27992.0,27991.0,0.0891]
[1680464906398,0.05,27992.0,27991.0,0.13588942]
[1680464907593,0.13588,27991.0,27982.0,0.0894]
[1680464907893,0.13588,27991.0,27980.0,0.0894]
[1680464907894,0.3895,27984.0,27980.0,0.0894]
[1680464908093,0.3895,27984.0,27983.0,0.0267146]
[1680464908294,0.3895,27984.0,27981.0,0.05]
[1680464908496,0.05,27983.0,27981.0,0.05]
[1680464908891,0.05,27983.0,27982.0,0.0888]
[1680464909088,0.05,27986.0,27982.0,0.1782]
[1680464909398,0.3007,27987.0,27982.0,0.1782]
[1680464909399,0.3007,27987.0,27985.0,0.0888]
[1680464909790,0.05,27986.0,27985.0,0.0888]
[1680464909991,0.05,27988.0,27985.0,0.0888]
[1680464910194,0.05,27988.0,27985.0,0.05]
[1680464910795,0.0894,27987.0,27985.0,0.05]
[1680464910994,0.05,27986.0,27985.0,0.05]
[1680464911394,0.05,27986.0,27983.0,0.05]
[1680464911596,0.05,27986.0,27982.0,0.0894]
[1680464911796,0.05,27986.0,27985.0,0.0894]
[1680464912103,0.05,27986.0,27984.0,0.0888]
[1680464912497,0.4395,27986.0,27981.0,0.0891]
[1680464912696,0.05,27982.0,27978.0,0.1394]
[1680464913000,0.05,27982.0,27979.0,0.05]
[1680464913802,0.0889,27983.0,27979.0,0.05]
[1680464915095,0.05,27982.0,27979.0,0.05]
[1680464915805,0.0886,27981.0,27977.0,0.3507]
[1680464915995,0.05,27980.0,27977.0,0.3507]
[1680464916192,0.05,27980.0,27977.0,0.3007]
[1680464916402,0.0894,27978.0,27975.0,0.05]
[1680464918103,0.05,27977.0,27973.0,0.05351872]
[1680464918398,0.4785,27974.0,27966.0,0.3315]
[1680464918604,0.3901,27969.0,27958.0,0.7007]
[1680464918802,0.3007,27969.0,27966.0,0.0886]
[1680464919004,0.3594,27973.0,27968.0,0.0888]
[1680464919207,0.3007,27974.0,27971.0,0.0886]
[1680464919601,0.089,27976.0,27971.0,0.0886]
[1680464919803,0.139,27976.0,27972.0,0.05]
[1680464920202,0.05,27975.0,27972.0,0.05]
[1680464920607,0.05,27975.0,27971.0,0.0886]
[1680464921311,0.3901,27974.0,27969.0,0.0888]
[1680464921504,0.3901,27974.0,27967.0,0.35549445]
[1680464921505,0.05,27970.0,27967.0,0.35549445]
[1680464921814,0.3507,27970.0,27967.0,0.00479445]
[1680464922013,0.4401,27970.0,27967.0,0.00479445]
[1680464922314,0.4401,27970.0,27967.0,0.00464824]
[1680464922704,0.4401,27970.0,27965.0,0.1394]
[1680464922898,0.4401,27970.0,27968.0,0.00474933]
[1680464923104,0.4401,27970.0,27965.0,0.1394]
[1680464923310,0.4401,27970.0,27966.0,0.00474882]
[1680464923512,0.43988638,27970.0,27966.0,0.00474882]
[1680464925002,0.3007,27967.0,27966.0,0.00474882]
[1680464925307,0.39198435,27967.0,27962.0,0.05]
[1680464925514,0.05,27963.0,27962.0,0.05]
[1680464925714,0.05,27963.0,27961.0,0.05]
[1680464925906,0.0893,27964.0,27961.0,0.05]
[1680464926105,0.05,27963.0,27961.0,0.05]
[1680464926616,0.39,27964.0,27961.0,0.05]
[1680464926805,0.30258435,27967.0,27962.0,0.0886]
[1680464926806,0.39128435,27967.0,27962.0,0.0886]
[1680464927012,0.09058435,27967.0,27962.0,0.0886]
[1680464927215,0.09058435,27967.0,27963.0,0.05]
[1680464928008,0.00188435,27967.0,27965.0,0.0891]
[1680464928211,0.00188435,27967.0,27966.0,0.05]
[1680464928411,0.3007,27971.0,27966.0,0.05]
[1680464928717,0.0894,27970.0,27966.0,0.05]
[1680464928906,0.1394,27970.0,27966.0,0.05]
[1680464929316,0.05,27969.0,27966.0,0.05]
[1680464929920,0.1394,27970.0,27966.0,0.05]
[1680464930120,0.05,27969.0,27966.0,0.05]
[1680464930418,0.3896,27967.0,27965.0,0.05]
[1680464930619,0.05,27966.0,27963.0,0.05]
[1680464930919,0.05,27966.0,27961.0,0.1386]
[1680464931712,0.0887,27963.0,27959.0,0.00032301]
[1680464931919,0.0888,27960.0,27959.0,1e-08]
[1680464932116,0.1418,27960.0,27959.0,1e-08]
[1680464932518,0.1918,27960.0,27959.0,1e-08]
[1680464933821,0.1418,27960.0,27959.0,1e-08]
[1680464934617,0.4425,27960.0,27959.0,1e-08]
[1680464937616,0.45766495,27960.0,27953.0,0.05]
[1680464937821,0.3007,27957.0,27953.0,0.05]
[1680464938720,0.1431,27958.0,27953.0,0.05]
[1680464939024,0.01516523,27960.0,27956.0,0.05]
[1680464939533,0.1431,27961.0,27956.0,0.05]
[1680464939919,0.01516718,27960.0,27956.0,0.05]
[1680464940124,0.1431,27961.0,27956.0,0.05]
[1680464940323,0.01516766,27959.0,27956.0,0.05]
[1680464940722,0.1431,27961.0,27956.0,0.05]
[1680464941130,0.3007,27967.0,27960.0,0.1431]
[1680464941424,0.3007,27967.0,27963.0,0.1431]
[1680464941627,0.3007,27967.0,27964.0,0.05]
[1680464942019,0.4425,27967.0,27964.0,0.05]
[1680464942927,0.3007,27967.0,27964.0,0.1931]
[1680464943126,0.05,27969.0,27964.0,0.1931]
[1680464944224,0.4438,27970.0,27964.0,0.1931]
[1680464944824,0.4438,27970.0,27965.0,0.3007]
[1680464945030,0.4438,27970.0,27966.0,0.05]
[1680464945426,0.0546422,27969.0,27966.0,0.05]
[1680464945625,0.0046422,27969.0,27966.0,0.05]
[1680464946534,0.0046422,27969.0,27968.0,0.05]
[1680464947730,0.3007,27970.0,27968.0,0.05]
[1680464948133,0.05,27972.0,27968.0,0.05]
[1680464948337,0.05,27972.0,27968.0,0.3507]
[1680464948537,0.3507,27973.0,27968.0,0.3507]
[1680464948740,0.4938,27973.0,27968.0,0.3507]
[1680464948927,0.05,27972.0,27968.0,0.3507]
[1680464949335,0.4438,27973.0,27968.0,0.3507]
[1680464949526,0.05,27972.0,27968.0,0.3507]
[1680464950735,0.4438,27973.0,27968.0,0.3507]
[1680464951935,0.3007,27973.0,27969.0,0.1431]
[1680464952139,0.3007,27973.0,27970.0,0.05]
[1680464953544,0.05,27972.0,27969.0,0.1931]
[1680464953838,0.05,27972.0,27970.0,0.05]
[1680464954830,0.05,27972.0,27969.0,0.1931]
[1680464955230,0.05,27972.0,27966.0,0.1931]
[1680464955231,0.1918,27972.0,27966.0,0.1931]
[1680464956736,0.3007,27967.0,27963.0,0.193]
[1680464956942,0.05,27966.0,27963.0,0.143]
[1680464957631,0.1931,27966.0,27960.0,0.192]
[1680464957842,0.3007,27964.0,27960.0,0.192]
[1680464958140,0.3007,27964.0,27959.0,0.05]
[1680464958141,0.05,27962.0,27959.0,0.05]
[1680464958444,0.05,27962.0,27958.0,0.05]
[1680464958642,0.05,27962.0,27957.0,0.1931]
[1680464960244,0.05,27962.0,27957.0,0.1431]
[1680464960647,0.00531714,27961.0,27957.0,0.1431]
[1680464960845,0.00531714,27961.0,27958.0,0.05]
[1680464962146,0.14841714,27961.0,27958.0,0.05]
[1680464963649,0.44911714,27961.0,27958.0,0.05]
[1680464965651,0.05,27960.0,27956.0,0.05]
[1680464966348,0.00531714,27961.0,27958.0,0.1431]
[1680464966547,0.05,27966.0,27960.0,0.1431]
[1680464966950,0.1431,27967.0,27961.0,0.05]
[1680464967151,0.3507,27969.0,27963.0,0.1431]
[1680464967352,0.3507,27969.0,27964.0,0.05]
[1680464967542,0.00533096,27968.0,27964.0,0.05]
[1680464968157,0.00533096,27968.0,27967.0,0.1431]
[1680464968653,0.05,27971.0,27967.0,0.1431]
[1680464968853,0.05,27971.0,27968.0,0.05]
[1680464969246,0.05,27972.0,27968.0,0.05]
[1680464970754,0.4925,27973.0,27968.0,0.05]
[1680464971056,0.3507,27973.0,27970.0,0.1431]
[1680464971963,0.3507,27973.0,27968.0,0.1931]
[1680464972759,0.3507,27973.0,27968.0,0.1431]
[1680464974364,0.1426,27971.0,27965.0,0.1423]
[1680464974659,0.05,27970.0,27966.0,0.05]
[1680464976664,0.3507,27970.0,27965.0,0.443]
[1680464977365,0.3507,27970.0,27966.0,0.05]
[1680464978267,0.3007,27970.0,27969.0,0.1431]
[1680464981474,0.3007,27970.0,27968.0,0.1431]
[1680464981772,0.22363386,27978.0,27971.0,0.4]
[1680464981960,0.16985407,27980.0,27977.0,0.1423]
[1680464982266,0.05,27981.0,27979.0,0.1431]
[1680464982467,0.05,27981.0,27980.0,0.1923]
[1680464982664,0.03704114,27981.0,27980.0,0.21246412]
[1680464982871,0.03554329,27981.0,27980.0,0.21246412]
[1680464983169,0.05,27986.0,27980.0,0.16246412]
[1680464983371,0.05,27986.0,27983.0,0.1431]
[1680464983573,0.05,27986.0,27984.0,0.0208923]
[1680464983873,0.05,27986.0,27983.0,0.1431]
[1680464984071,0.1931,27986.0,27984.0,0.02089186]
[1680464984258,0.05,27986.0,27984.0,0.16399186]
[1680464985161,0.05,27987.0,27984.0,0.16399186]
[1680464985865,0.1926,27985.0,27984.0,0.02089186]
[1680464986271,0.1926,27985.0,27979.0,0.443]
[1680464986465,0.05,27984.0,27979.0,0.443]
[1680464987870,0.05,27984.0,27983.0,0.1431]
[1680464988070,0.05,27985.0,27983.0,0.1431]
[1680464988759,0.05,27986.0,27983.0,0.1431]
[1680464988965,0.05,27986.0,27984.0,0.05]
[1680464989274,0.05,27988.0,27984.0,0.05]
[1680464990066,0.05,27988.0,27985.0,0.3007]
[1680464990373,0.05,27988.0,27986.0,0.21519958]
[1680464990773,0.05,27988.0,27986.0,0.07289958]
[1680464991076,0.05,27988.0,27986.0,0.02289958]
[1680464991266,0.05,27989.0,27987.0,0.1423]
[1680464991667,0.1926,27989.0,27986.0,0.07289958]
[1680464991871,0.1926,27989.0,27986.0,0.02289958]
[1680464992067,0.05,27989.0,27986.0,0.07289958]
[1680464992273,0.1393,27990.0,27986.0,0.16189958]
[1680464992468,0.05,27990.0,27989.0,0.0893]
[1680464992669,0.13588,27991.0,27989.0,0.1786]
[1680464992869,0.13588,27991.0,27990.0,0.0893]
[1680464994278,0.05,27993.0,27990.0,0.0893]
[1680464994577,0.05,27993.0,27991.0,0.0893]
[1680464994978,0.05,27993.0,27992.0,0.0892]
[1680464995475,0.05,27993.0,27991.0,0.0893]
[1680464996274,0.05,27994.0,27991.0,0.0893]
[1680464996776,0.0893,27993.0,27989.0,0.3007]
[1680464996977,0.05,27992.0,27989.0,0.3007]
[1680464997579,0.05,27992.0,27990.0,0.02586712]
[1680464997773,0.05,27992.0,27990.0,0.07586712]
[1680464998079,0.05,27992.0,27990.0,0.02586712]
[1680464998383,0.05,27994.0,27991.0,0.1771]
[1680464998577,0.05,27994.0,27993.0,0.0893]
[1680464998877,0.05,27994.0,27991.0,0.0885]
[1680464999979,0.05,27994.0,27993.0,0.0886]
[1680465000178,0.05,27995.0,27992.0,0.1389]
[1680465000475,0.05,27995.0,27994.0,0.0893]
[1680465001068,0.05,27997.0,27994.0,0.0893]
[1680465001270,0.05,27997.0,27996.0,0.0893]
[1680465002193,0.05,27998.0,27996.0,0.0893]
[1680465002395,0.05,27998.0,27997.0,0.0893]
[1680465002988,0.1393,27998.0,27993.0,0.1393]
[1680465003690,0.05,27998.0,27997.0,0.0893]
[1680465004391,0.05,27998.0,27994.0,0.0893]
[1680465004693,0.05,27998.0,27997.0,0.0889]
[1680465005489,0.05,27998.0,27995.0,0.05]
[1680465005793,0.05,27998.0,27994.0,0.0892]
[1680465006389,0.05,27998.0,27997.0,0.0893]
[1680465006692,0.1391,27998.0,27994.0,0.0889]
[1680465006894,0.3007,27996.0,27994.0,0.0889]
[1680465007090,0.05,27995.0,27991.0,0.0894]
[1680465007599,0.05,27993.0,27991.0,0.0893]
[1680465007894,0.05,27993.0,27992.0,0.0893]
[1680465010196,0.05,27993.0,27990.0,0.0893]
[1680465011096,0.05,27990.0,27988.0,0.05]
[1680465011594,0.05,27990.0,27987.0,0.1392]
[1680465011795,0.05,27990.0,27989.0,0.39]
[1680465011991,0.05,27990.0,27989.0,0.3007]
[1680465012194,0.05,27990.0,27988.0,0.0889]
[1680465014193,0.1393,27990.0,27985.0,0.1393]
[1680465014392,0.1393,27990.0,27985.0,0.0893]
[1680465014785,0.0884,27987.0,27982.0,0.39]
[1680465015197,0.0884,27987.0,27982.0,0.0893]
[1680465015394,0.05,27986.0,27982.0,0.0893]
[1680465016300,0.0891,27983.0,27978.0,0.4396]
[1680465016499,0.05,27982.0,27979.0,0.05]
[1680465017390,0.05,27982.0,27978.0,0.4396]
[1680465017596,0.05,27982.0,27978.0,0.3896]
[1680465017895,0.0893,27981.0,27978.0,0.3007]
[1680465018098,0.0893,27979.0,27975.0,0.05]
[1680465018294,0.39,27978.0,27973.0,0.39]
[1680465018493,0.44,27978.0,27974.0,0.05]
[1680465018698,0.05,27977.0,27973.0,0.39]
[1680465018899,0.05,27977.0,27975.0,0.05]
[1680465019398,0.0893,27976.0,27971.0,0.3007]
[1680465019597,0.1393,27975.0,27974.0,0.05]
[1680465019989,0.1393,27975.0,27972.0,0.05]
[1680465020195,0.05,27974.0,27972.0,0.05]
[1680465020698,0.05,27977.0,27973.0,0.0893]
[1680465020894,0.05,27977.0,27974.0,0.05]
[1680465021298,0.05,27977.0,27974.0,0.06030832]
[1680465021599,0.05,27977.0,27974.0,0.01030832]
[1680465021994,0.1393,27977.0,27974.0,0.01030832]
[1680465022397,0.0893,27979.0,27975.0,0.0892]
[1680465022591,0.05,27980.0,27978.0,0.0893]
[1680465022898,0.49447164,27983.0,27979.0,0.05]
[1680465023900,0.05,27982.0,27979.0,0.05]
[1680465024694,0.05,27982.0,27978.0,0.1389]
[1680465025504,0.05,27982.0,27978.0,0.0889]
[1680465025693,0.05,27982.0,27972.0,0.05]
[1680465025694,0.0894,27979.0,27972.0,0.4401]
[1680465026004,0.0889,27977.0,27972.0,0.4401]
[1680465026201,0.0889,27977.0,27973.0,0.00978138]
[1680465026392,0.05,27976.0,27973.0,0.00978138]
[1680465026598,0.05,27976.0,27972.0,0.4401]
[1680465029406,0.05,27976.0,27972.0,0.3901]
[1680465031896,0.0894,27975.0,27972.0,0.3007]
[1680465032100,0.05,27974.0,27972.0,0.3007]
[1680465032699,0.05,27974.0,27972.0,0.3005606]
[1680465032905,0.0894,27975.0,27972.0,0.3005606]
[1680465038009,0.0894,27975.0,27973.0,0.05]
[1680465038813,0.0894,27975.0,27972.0,0.3005606]
[1680465039007,0.0894,27975.0,27973.0,0.05]
[1680465040611,0.0894,27980.0,27974.0,0.0892]
[1680465040909,0.05,27979.0,27976.0,0.3007]
[1680465041106,0.05,27979.0,27977.0,0.05177697]
[1680465041503,0.05,27979.0,27977.0,0.00177697]
[1680465041905,0.05,27979.0,27974.0,0.05]
[1680465042100,0.0894,27975.0,27972.0,0.3005606]
[1680465042305,0.0894,27973.0,27972.0,0.3005606]
[1680465043509,0.0894,27973.0,27968.0,0.05]
[1680465043711,0.05,27971.0,27968.0,0.05]
[1680465045408,0.0894,27972.0,27968.0,0.05]
[1680465054517,0.0894,27973.0,27970.0,0.3007]
[1680465054817,0.0894,27976.0,27971.0,0.0889]
[1680465055020,0.05,27976.0,27974.0,0.0893]
[1680465055522,0.05,27976.0,27975.0,0.05]
[1680465056323,0.05,27976.0,27974.0,0.0893]
[1680465058020,0.0889,27975.0,27973.0,0.3007]
[1680465058223,0.1394,27978.0,27974.0,0.05]
[1680465058425,0.0894,27978.0,27974.0,0.05]
[1680465059217,0.0894,27978.0,27975.0,0.00708402]
[1680465060626,0.0887,27976.0,27975.0,0.00708402]
[1680465061120,0.0887,27976.0,27973.0,0.3007]
[1680465061324,0.0887,27976.0,27974.0,0.05]
[1680465061627,0.05,27975.0,27973.0,0.3007]
[1680465062125,0.05,27977.0,27975.0,0.05]
[1680465062525,0.05,27977.0,27974.0,0.1394]
[1680465062916,0.0891,27976.0,27975.0,0.05]
[1680465063423,0.05,27977.0,27975.0,0.1388]
[1680465063818,0.05,27977.0,27975.0,0.0888]
[1680465064725,0.05,27979.0,27975.0,0.0888]
[1680465070623,0.4394,27980.0,27975.0,0.0888]
[1680465070832,0.4394,27980.0,27976.0,0.05]
[1680465071128,0.4394,27980.0,27976.0,0.05726575]
[1680465071522,0.4394,27980.0,27976.0,0.00726575]
[1680465071930,0.4394,27980.0,27976.0,0.05726575]
[1680465072124,0.4394,27980.0,27976.0,0.00726575]
[1680465072723,0.0887,27980.0,27977.0,0.05]
[1680465072930,0.25885407,27983.0,27978.0,0.0892]
[1680465073236,0.05,27982.0,27979.0,0.05]
[1680465073726,0.05,27982.0,27978.0,0.0892]
[1680465074527,0.27211578,27984.0,27981.0,0.0894]
[1680465074731,0.05,27984.0,27981.0,0.0894]
[1680465075121,0.05,27984.0,27982.0,0.3007]
[1680465075428,0.05,27984.0,27983.0,0.05]
[1680465075826,0.05,27984.0,27982.0,0.3007]
[1680465076624,0.05,27985.0,27982.0,0.3007]
[1680465076833,0.05,27985.0,27983.0,0.05]
[1680465077330,0.05,27985.0,27982.0,0.3507]
[1680465077532,0.05,27985.0,27984.0,0.0894]
[1680465077731,0.1389,27985.0,27979.0,0.3901]
[1680465077928,0.05,27982.0,27979.0,0.3901]
[1680465078134,0.05,27982.0,27980.0,0.05]
[1680465078333,0.05,27985.0,27981.0,0.1394]
[1680465078525,0.05,27985.0,27982.0,0.05]
[1680465078826,0.05,27985.0,27981.0,0.1394]
[1680465079129,0.05,27985.0,27981.0,0.0894]
[1680465079522,0.0889,27983.0,27979.0,0.0893]
[1680465079830,0.6014,27984.0,27976.0,0.09666575]
[1680465079831,0.0894,27980.0,27976.0,0.09666575]
[1680465080029,0.0894,27978.0,27976.0,0.00726575]
[1680465080424,0.0894,27978.0,27973.0,0.4401]
[1680465080627,0.0894,27978.0,27974.0,0.05]
[1680465080927,0.0894,27978.0,27973.0,0.4401]
[1680465080928,0.3901,27978.0,27973.0,0.4401]
[1680465081134,0.0894,27974.0,27973.0,0.05]
[1680465081332,0.0894,27974.0,27972.0,0.05]
[1680465082128,0.0889,27975.0,27970.0,0.1392]
[1680465083126,0.05,27974.0,27970.0,0.1392]
[1680465083530,0.05,27974.0,27970.0,0.0892]
[1680465084123,0.05,27974.0,27970.0,0.1392]
[1680465084324,0.05,27974.0,27970.0,0.0892]
[1680465085132,0.3507,27974.0,27970.0,0.0892]
[1680465085332,0.0891,27972.0,27969.0,0.3007]
[1680465085526,0.05,27971.0,27969.0,0.3007]
[1680465085839,0.05,27971.0,27969.0,0.3006053]
[1680465086037,0.0891,27972.0,27969.0,0.3006053]
[1680465086231,0.0891,27972.0,27970.0,0.00459306]
[1680465086430,0.0891,27972.0,27970.0,0.05]
[1680465087229,0.0891,27972.0,27969.0,0.3006053]
[1680465087439,0.0891,27972.0,27968.0,0.05]
[1680465087624,0.05,27971.0,27968.0,0.05]
[1680465089037,0.0891,27972.0,27968.0,0.05]
[1680465090040,0.05,27971.0,27967.0,0.1394]
[1680465091332,0.0891,27972.0,27967.0,0.1394]
[1680465091841,0.05,27971.0,27967.0,0.1394]
[1680465092034,0.0894,27970.0,27967.0,0.05]
[1680465092240,0.05,27969.0,27967.0,0.05]
[1680465092840,0.09146573,27970.0,27967.0,0.05]
[1680465093042,0.00206573,27970.0,27969.0,0.3901]
[1680465093239,0.1393,27975.0,27969.0,0.3901]
[1680465093538,0.00183632,27970.0,27969.0,0.3901]
[1680465093735,0.05,27976.0,27969.0,0.3901]
[1680465094041,0.44,27977.0,27972.0,0.0894]
[1680465094241,0.05,27976.0,27973.0,0.05]
[1680465097134,0.05,27976.0,27972.0,0.3901]
[1680465097333,0.05,27976.0,27973.0,0.05]
[1680465098440,0.0893,27977.0,27973.0,0.05]
[1680465098640,0.05,27976.0,27972.0,0.3901]
[1680465098939,0.05,27976.0,27973.0,0.05]
[1680465100039,0.05,27976.0,27972.0,0.3901]
[1680465100743,0.0894,27974.0,27972.0,0.3007]
[1680465100932,0.05,27973.0,27972.0,0.3007]
[1680465102032,0.1394,27973.0,27972.0,0.3007]
[1680465102236,0.1394,27973.0,27969.0,0.3007]
[1680465102437,0.0893,27972.0,27969.0,0.3007]
[1680465102737,0.05,27971.0,27969.0,0.3007]
[1680465104836,0.0893,27972.0,27969.0,0.3007]
[1680465105743,0.0893,27972.0,27970.0,0.05]
[1680465106145,0.0893,27972.0,27969.0,0.3007]
[1680465107937,0.05,27971.0,27969.0,0.3007]
[1680465112048,0.0894,27970.0,27969.0,0.3007]
[1680465112249,0.0894,27970.0,27965.0,0.4401]
[1680465112545,0.05,27969.0,27965.0,0.4401]
[1680465114750,0.0894,27970.0,27965.0,0.4401]
[1680465116342,0.05699345,27969.0,27965.0,0.4401]
[1680465116548,0.05699345,27969.0,27968.0,0.3007]
[1680465119253,0.05699345,27969.0,27965.0,0.3901]
[1680465119445,0.05699345,27969.0,27966.0,0.05]
[1680465119848,0.089,27967.0,27965.0,0.3007]
[1680465120048,0.089,27967.0,27966.0,0.05]
[1680465120447,0.089,27967.0,27965.0,0.3007]
[1680465121648,0.00699345,27969.0,27966.0,0.05]
[1680465121954,0.00699345,27969.0,27968.0,0.4784]
[1680465122156,0.36874509,27975.0,27968.0,0.4784]
[1680465122354,0.3138,27975.0,27972.0,0.3901]
[1680465122554,0.05,27977.0,27972.0,0.3901]
[1680465123249,0.05,27977.0,27973.0,0.05]
[1680465123639,0.05,27977.0,27972.0,0.3901]
[1680465123845,0.05,27975.0,27973.0,0.05]
[1680465124950,0.05,27975.0,27972.0,0.3901]
[1680465125260,0.05,27977.0,27973.0,0.05]
[1680465125750,0.05,27978.0,27975.0,0.3007]
[1680465126053,0.3507,27979.0,27977.0,0.0894]
[1680465126356,0.3007,27979.0,27978.0,0.05]
[1680465126856,0.3007,27979.0,27977.0,0.0894]
[1680465129452,0.05,27981.0,27977.0,0.0894]
[1680465129660,0.49278674,27982.0,27978.0,0.3534523]
[1680465129961,0.05,27981.0,27979.0,0.05]
[1680465130960,0.05,27981.0,27980.0,0.00256823]